bitfinex/quotes_BTCUSD_20240712
["timestamp","ask_amount","ask_price","bid_price","bid_amount"]
[1720783846423,1.568871,57366.0,57365.0,0.09437]
[1720783846882,1.569871,57366.0,57365.0,0.09437]
[1720783847435,1.570871,57366.0,57365.0,0.09688213]
[1720783848279,1.570871,57366.0,57365.0,0.06311213]
[1720783848480,1.570871,57366.0,57365.0,0.0606]
[1720783848811,1.570871,57366.0,57365.0,0.09688313]
[1720783850442,1.222233,57366.0,57365.0,0.09688313]
[1720783850618,1.222233,57366.0,57365.0,0.49458313]
[1720783853359,1.22925123,57366.0,57365.0,0.49458313]
[1720783854395,1.22925123,57366.0,57365.0,0.37458313]
[1720783854732,1.22925123,57366.0,57365.0,0.49458313]
[1720783854933,1.22925123,57366.0,57365.0,0.17458313]
[1720783856761,1.22925123,57366.0,57365.0,0.49458313]
[1720783857703,1.22925123,57366.0,57365.0,0.17458313]
[1720783860396,1.22925123,57366.0,57365.0,0.37458313]
[1720783860600,1.22925123,57366.0,57365.0,0.49458313]
[1720783861924,1.22925123,57366.0,57365.0,0.37458313]
[1720783862128,1.22925123,57366.0,57365.0,0.17458313]
[1720783863452,1.57788923,57366.0,57365.0,0.17458313]
[1720783863775,1.57788923,57366.0,57365.0,0.17207]
[1720783864862,1.57788923,57366.0,57365.0,0.17459213]
[1720783868768,1.57788923,57366.0,57365.0,0.17207]
[1720783869887,1.57788923,57366.0,57365.0,0.03377]
[1720783870101,0.174325,57364.0,57363.0,0.17627]
[1720783870315,0.174325,57364.0,57363.0,0.17619096]
[1720783870528,0.174325,57364.0,57363.0,0.1787152]
[1720783870735,0.522975,57364.0,57363.0,0.1787152]
[1720783871175,1.220275,57364.0,57363.0,0.1787152]
[1720783871362,1.569925,57364.0,57363.0,0.4987152]
[1720783871698,1.222275,57364.0,57363.0,0.4987152]
[1720783874538,1.222275,57364.0,57363.0,0.5987152]
[1720783874714,0.873625,57364.0,57363.0,0.5987152]
[1720783876117,0.873625,57364.0,57363.0,0.5996282]
[1720783877164,0.002,57364.0,57363.0,0.5996282]
[1720783877282,0.002,57364.0,57363.0,0.76987916]
[1720783877887,0.002,57364.0,57363.0,0.6596282]
[1720783878092,0.17639099,57380.0,57363.0,0.6596282]
[1720783878093,0.17639099,57382.0,57374.0,0.45377]
[1720783878296,0.008079,57375.0,57374.0,0.59757]
[1720783878505,0.175121,57375.0,57374.0,0.7090093]
[1720783879386,0.176121,57375.0,57374.0,0.7090093]
[1720783879854,0.523704,57375.0,57374.0,0.7090093]
[1720783880087,0.524704,57375.0,57374.0,0.7150093]
[1720783880317,0.524704,57375.0,57374.0,0.7090093]
[1720783880559,0.524704,57375.0,57374.0,0.59988016]
[1720783880783,0.874287,57375.0,57374.0,0.61188016]
[1720783881483,0.873287,57375.0,57374.0,0.59988016]
[1720783881708,0.874287,57375.0,57374.0,0.60788016]
[1720783882202,0.873287,57375.0,57374.0,0.60788016]
[1720783882429,0.874287,57375.0,57374.0,0.61588016]
[1720783883590,1.22287,57375.0,57374.0,0.49588016]
[1720783884518,1.22287,57375.0,57374.0,0.39588016]
[1720783884778,1.22287,57375.0,57374.0,0.19588016]
[1720783885009,1.22287,57375.0,57374.0,0.39588016]
[1720783885234,1.22287,57375.0,57374.0,0.19588016]
[1720783885948,1.571453,57375.0,57374.0,0.01831016]
[1720783886401,1.571453,57375.0,57374.0,0.016]
[1720783886870,1.920036,57375.0,57374.0,0.016]
[1720783888000,1.920036,57375.0,57367.0,0.03377]
[1720783888001,0.174313,57368.0,57367.0,0.03377]
[1720783888237,0.522939,57368.0,57367.0,0.03627246]
[1720783888412,1.220191,57368.0,57367.0,0.03627246]
[1720783888833,1.568817,57368.0,57367.0,0.03627246]
[1720783889636,1.568817,57368.0,57367.0,0.03377]
[1720783890055,1.568817,57368.0,57367.0,0.04177]
[1720783890056,1.569817,57368.0,57367.0,0.04177]
[1720783890463,1.570817,57368.0,57367.0,0.04706392]
[1720783895723,1.222191,57368.0,57367.0,0.47277827]
[1720783895937,1.222191,57368.0,57367.0,0.59277827]
[1720783897191,1.222191,57368.0,57367.0,0.47277827]
[1720783897597,1.22952711,57368.0,57367.0,0.59277827]
[1720783907605,0.53227511,57368.0,57367.0,0.69277827]
[1720783908119,0.002,57368.0,57367.0,0.75277827]
[1720783908702,0.002,57368.0,57367.0,0.69277827]
[1720783908963,0.002,57368.0,57367.0,0.7558418]
[1720783909352,0.002,57368.0,57367.0,0.7567548]
[1720783909529,0.002,57368.0,57367.0,0.75369127]
[1720783909730,0.002,57368.0,57367.0,0.7567548]
[1720783910695,0.002,57368.0,57367.0,0.75369127]
[1720783911731,0.002,57368.0,57367.0,0.69369127]
[1720783912211,0.176313,57368.0,57367.0,0.69369127]
[1720783916200,0.176313,57368.0,57367.0,0.75369127]
[1720783918288,0.002,57368.0,57367.0,0.75369127]
[1720783919241,0.002,57368.0,57367.0,0.69369127]
[1720783919666,0.176313,57368.0,57367.0,0.69369127]
[1720783920743,0.524939,57368.0,57367.0,0.69369127]
[1720783922453,0.524939,57368.0,57367.0,0.48857692]
[1720783922454,0.873565,57368.0,57367.0,0.48857692]
[1720783922690,1.222191,57368.0,57367.0,0.60857692]
[1720783923930,1.222191,57368.0,57367.0,0.34797692]
[1720783924589,1.652217,57368.0,57367.0,0.04797692]
[1720783925509,1.570817,57368.0,57367.0,0.04797692]
[1720783925661,1.570817,57368.0,57367.0,0.24797692]
[1720783926378,1.570817,57368.0,57367.0,0.36797692]
[1720783927753,1.570817,57368.0,57367.0,0.24797692]
[1720783928613,1.570817,57368.0,57367.0,0.04797692]
[1720783931423,1.570817,57368.0,57367.0,0.01420692]
[1720783931630,1.475904,57368.0,57367.0,0.04797692]
[1720783931883,1.475904,57368.0,57367.0,0.045683]
[1720783932026,1.650217,57368.0,57367.0,0.045683]
[1720783932299,2.17540733,57368.0,57367.0,0.011913]
[1720783932489,2.17540733,57368.0,57367.0,0.04820442]
[1720783932830,1.998843,57368.0,57367.0,0.045683]
[1720783933805,1.998843,57368.0,57367.0,0.011913]
[1720783935228,1.998843,57368.0,57367.0,0.003913]
[1720783935688,2.000843,57368.0,57367.0,0.000913]
[1720783936092,2.005843,57368.0,57367.0,0.000913]
[1720783936231,2.000843,57368.0,57367.0,0.000913]
[1720783936438,2.007843,57368.0,57367.0,0.001913]
[1720783936634,2.015843,57368.0,57367.0,0.001913]
[1720783939524,1.568925,57364.0,57363.0,0.034683]
[1720783939682,1.650325,57364.0,57363.0,0.034683]
[1720783940719,1.652325,57364.0,57363.0,0.034683]
[1720783941184,1.654325,57364.0,57363.0,0.034683]
[1720783942638,2.002975,57364.0,57363.0,0.034683]
[1720783943025,2.00293288,57364.0,57363.0,0.034683]
[1720783944488,2.00293288,57364.0,57363.0,0.03720832]
[1720783946525,2.00293288,57364.0,57363.0,0.034683]
[1720783951686,1.58061813,57364.0,57363.0,0.49830832]
[1720783951897,1.23196813,57364.0,57363.0,0.65904775]
[1720783952108,0.88331813,57364.0,57363.0,0.71904775]
[1720783952323,0.004,57364.0,57363.0,0.80044775]
[1720783952739,0.00083,57368.0,57367.0,0.51377]
[1720783952740,0.175143,57368.0,57367.0,0.51377]
[1720783952973,0.175143,57368.0,57367.0,0.73627]
[1720783953189,0.175143,57368.0,57367.0,0.73879269]
[1720783953805,0.523769,57368.0,57367.0,0.67879269]
[1720783954018,0.524769,57368.0,57367.0,0.76798368]
[1720783954682,0.525769,57368.0,57367.0,0.68079269]
[1720783955101,0.524769,57368.0,57367.0,0.67879269]
[1720783956172,0.524769,57368.0,57367.0,0.68079269]
[1720783956395,0.524769,57368.0,57367.0,0.59939269]
[1720783956623,0.525769,57368.0,57367.0,0.60239269]
[1720783959051,0.874395,57368.0,57367.0,0.60239269]
[1720783959271,1.223021,57368.0,57367.0,0.60239269]
[1720783963064,1.223021,57368.0,57367.0,0.38239269]
[1720783963279,1.223021,57368.0,57367.0,0.18239269]
[1720783963642,1.223021,57368.0,57367.0,0.38239269]
[1720783964213,1.223021,57368.0,57367.0,0.37739269]
[1720783964214,1.221021,57368.0,57367.0,0.37739269]
[1720783964468,1.222021,57368.0,57367.0,0.38139269]
[1720783964671,1.223021,57368.0,57367.0,0.38239269]
[1720783965045,1.223021,57368.0,57367.0,0.50239269]
[1720783966265,1.223021,57368.0,57367.0,0.60239269]
[1720783967032,0.874395,57368.0,57367.0,0.66239269]
[1720783967631,0.177143,57368.0,57367.0,0.66239269]
[1720783968060,0.00283,57368.0,57367.0,0.66239269]
[1720783969948,0.00283,57368.0,57367.0,0.74750704]
[1720783971052,0.00283,57368.0,57367.0,1.2317248]
[1720783971344,0.00283,57368.0,57367.0,2.4263048]
[1720783972830,0.00183,57368.0,57367.0,2.6247048]
[1720783973078,0.00183,57368.0,57367.0,2.6377048]
[1720783973340,0.00083,57374.0,57373.0,1.176664]
[1720783973603,0.00083,57374.0,57373.0,1.5503014]
[1720783973843,0.00083,57374.0,57373.0,1.8988974]
[1720783974102,0.00083,57374.0,57373.0,2.10139547]
[1720783974353,0.00083,57374.0,57373.0,2.44999147]
[1720783974614,0.00083,57374.0,57373.0,2.46099147]
[1720783974871,0.00183,57374.0,57373.0,2.47499147]
[1720783975327,0.00183,57374.0,57373.0,2.49799147]
[1720783975788,0.00183,57374.0,57373.0,2.29799147]
[1720783976018,0.00183,57374.0,57373.0,2.28699147]
[1720783976372,0.00183,57374.0,57373.0,2.30099147]
[1720783976631,0.00183,57374.0,57373.0,2.50099147]
[1720783976875,0.00183,57374.0,57373.0,2.48699147]
[1720783977119,0.00083,57374.0,57373.0,2.48699147]
[1720783977520,0.00083,57374.0,57373.0,2.50099147]
[1720783977931,0.00083,57374.0,57373.0,2.48699147]
[1720783978136,0.00083,57374.0,57373.0,2.50099147]
[1720783979258,0.47377042,57389.0,57388.0,0.59557]
[1720783979725,0.48137557,57389.0,57388.0,0.59804871]
[1720783980491,0.48137557,57389.0,57388.0,0.60704871]
[1720783980697,0.48137557,57389.0,57388.0,0.61504871]
[1720783981056,0.17424,57393.0,57392.0,0.1]
[1720783981300,0.52261,57404.0,57403.0,0.2]
[1720783981502,0.52261,57404.0,57402.0,0.15377]
[1720783981503,0.174206,57403.0,57402.0,0.03377]
[1720783981711,0.871032,57403.0,57402.0,0.03377]
[1720783981906,1.219445,57403.0,57402.0,0.03377]
[1720783982113,1.219445,57403.0,57402.0,0.35377]
[1720783982336,1.219445,57403.0,57402.0,0.35649066]
[1720783982552,1.219445,57403.0,57402.0,0.42109066]
[1720783982757,1.219445,57403.0,57402.0,0.49699066]
[1720783982961,0.871032,57403.0,57402.0,0.59699066]
[1720783983407,0.871032,57403.0,57402.0,0.59899066]
[1720783983963,0.871032,57403.0,57402.0,0.27699066]
[1720783984188,0.871032,57403.0,57402.0,0.4766908]
[1720783984946,0.871032,57403.0,57402.0,0.0411908]
[1720783984947,1.228445,57403.0,57402.0,0.0411908]
[1720783985362,1.228445,57403.0,57402.0,0.0471908]
[1720783985569,1.228445,57403.0,57402.0,0.04717903]
[1720783985989,1.228445,57403.0,57402.0,0.04117903]
[1720783986198,1.576858,57403.0,57402.0,0.03617903]
[1720783986406,1.576858,57403.0,57402.0,0.00270889]
[1720783986611,1.567971,57399.0,57398.0,0.03347014]
[1720783987024,1.567971,57399.0,57398.0,0.03618072]
[1720783988843,1.567971,57399.0,57398.0,0.03347014]
[1720783989048,1.567971,57399.0,57398.0,0.001]
[1720783989247,1.567971,57399.0,57398.0,0.03447014]
[1720783990873,1.567971,57399.0,57398.0,0.46343808]
[1720783991046,1.567971,57399.0,57398.0,0.58343808]
[1720783991047,1.219533,57399.0,57398.0,0.58343808]
[1720783991245,0.871095,57399.0,57398.0,0.68343808]
[1720783991502,0.871095,57399.0,57398.0,0.75778189]
[1720783991823,0.871095,57399.0,57398.0,0.68343808]
[1720783993027,0.871095,57399.0,57398.0,0.59832373]
[1720783993614,0.871095,57399.0,57398.0,0.27832373]
[1720783993615,1.219533,57399.0,57398.0,0.27832373]
[1720783994224,1.219533,57399.0,57398.0,0.27802387]
[1720783995437,1.567971,57399.0,57398.0,0.13662387]
[1720783996536,1.567971,57399.0,57398.0,0.03662387]
[1720783999383,1.567971,57399.0,57398.0,0.23662387]
[1720783999984,1.567971,57399.0,57398.0,0.35662387]
[1720784000980,1.219533,57399.0,57398.0,0.52082387]
[1720784001298,1.219533,57399.0,57398.0,0.60002387]
[1720784005441,1.219533,57399.0,57398.0,0.18002387]
[1720784005582,1.219533,57399.0,57398.0,0.03662387]
[1720784006511,1.219533,57399.0,57398.0,0.13662387]
[1720784006914,1.219533,57399.0,57398.0,0.03662387]
[1720784007318,1.219533,57399.0,57398.0,0.13662387]
[1720784008501,1.220363,57399.0,57398.0,0.13662387]
[1720784008708,1.220363,57399.0,57398.0,0.59542387]
[1720784008908,1.220363,57399.0,57398.0,0.66347769]
[1720784008909,0.871925,57399.0,57398.0,0.66347769]
[1720784010128,0.871925,57399.0,57398.0,0.59542387]
[1720784012051,1.220363,57399.0,57398.0,0.59542387]
[1720784013197,0.871925,57399.0,57398.0,0.59542387]
[1720784014026,0.871925,57399.0,57398.0,0.65542387]
[1720784014027,0.00083,57399.0,57398.0,0.65542387]
[1720784014226,0.00083,57399.0,57398.0,0.77323486]
[1720784015044,0.00083,57399.0,57398.0,0.77253472]
[1720784015255,0.00083,57399.0,57398.0,0.95975672]
[1720784015455,0.00083,57399.0,57398.0,0.97275672]
[1720784017327,0.00083,57399.0,57398.0,1.32120072]
[1720784017558,0.00083,57399.0,57398.0,1.66964472]
[1720784017758,0.00083,57399.0,57398.0,1.32120072]
[1720784018876,0.18204474,57408.0,57407.0,0.32]
[1720784019121,0.870957,57408.0,57407.0,0.4988]
[1720784019293,0.870957,57408.0,57407.0,0.46923668]
[1720784020356,0.870957,57408.0,57407.0,0.50270682]
[1720784020914,0.870957,57408.0,57407.0,0.50470682]
[1720784021325,0.870957,57408.0,57407.0,0.50570682]
[1720784022753,0.870957,57408.0,57407.0,0.60570682]
[1720784024352,0.870957,57408.0,57407.0,0.60540696]
[1720784026100,0.870957,57408.0,57407.0,0.48570682]
[1720784026355,1.567723,57408.0,57407.0,0.13890682]
[1720784026582,1.567723,57408.0,57407.0,0.03890682]
[1720784026784,1.92540586,57408.0,57407.0,0.00543668]
[1720784026999,2.1016618,57408.0,57407.0,0.003]
[1720784027186,1.92540586,57408.0,57407.0,0.003]
[1720784027398,1.21974486,57403.0,57402.0,0.03347014]
[1720784027606,1.22874486,57403.0,57402.0,0.03347014]
[1720784027807,0.00029986,57397.0,57396.0,0.03347014]
[1720784028011,0.87145486,57395.0,57394.0,0.03347014]
[1720784028228,0.17453686,57393.0,57392.0,0.03347014]
[1720784028434,0.52301086,57393.0,57392.0,0.03347014]
[1720784028634,1.56843286,57393.0,57392.0,0.03347014]
[1720784029267,1.7447367,57393.0,57392.0,0.03347014]
[1720784029474,1.56843286,57393.0,57392.0,0.03347014]
[1720784029902,1.7497367,57393.0,57392.0,0.03347014]
[1720784030128,1.7497367,57393.0,57387.0,0.1]
[1720784030129,1.22000086,57391.0,57390.0,0.03347014]
[1720784030335,1.56848686,57391.0,57390.0,0.03347014]
[1720784030949,1.22002186,57390.0,57389.0,0.03347014]
[1720784031160,1.56851386,57390.0,57389.0,0.03347014]
[1720784032478,1.568214,57390.0,57389.0,0.03347014]
[1720784033010,1.56851386,57390.0,57389.0,0.03347014]
[1720784033213,1.568214,57390.0,57389.0,0.03347014]
[1720784033435,1.568214,57390.0,57389.0,0.23347014]
[1720784033610,1.568214,57390.0,57389.0,0.23616514]
[1720784035656,1.571214,57390.0,57389.0,0.23616514]
[1720784036090,1.571214,57390.0,57389.0,0.23347014]
[1720784036319,1.575214,57390.0,57389.0,0.23347014]
[1720784036594,1.575214,57390.0,57389.0,0.59787028]
[1720784036595,1.226722,57390.0,57389.0,0.59787028]
[1720784037001,1.226722,57390.0,57389.0,0.60056528]
[1720784037205,1.226722,57390.0,57389.0,0.66056528]
[1720784037406,0.529738,57390.0,57389.0,0.66056528]
[1720784037584,0.526738,57390.0,57389.0,0.66056528]
[1720784037781,0.526738,57390.0,57389.0,0.60256528]
[1720784037990,0.526738,57390.0,57389.0,0.67733324]
[1720784038205,0.526738,57390.0,57389.0,0.60256528]
[1720784038469,0.87123,57390.0,57389.0,0.60056528]
[1720784038669,0.87223,57390.0,57389.0,0.60756528]
[1720784038788,0.87223,57390.0,57389.0,0.60956528]
[1720784038992,0.87223,57390.0,57389.0,0.60756528]
[1720784039454,0.87323,57390.0,57389.0,0.61056528]
[1720784040117,0.87323,57390.0,57389.0,0.61147828]
[1720784040730,0.87323,57390.0,57389.0,0.49177814]
[1720784040931,0.87323,57390.0,57389.0,0.29177814]
[1720784040932,1.221722,57390.0,57389.0,0.29177814]
[1720784041134,0.87323,57390.0,57389.0,0.6114135]
[1720784041508,1.221722,57390.0,57389.0,0.24701336]
[1720784041932,1.221722,57390.0,57389.0,0.3667135]
[1720784042340,1.221722,57390.0,57389.0,0.4667135]
[1720784042971,1.221722,57390.0,57389.0,0.53337485]
[1720784043172,1.221722,57390.0,57389.0,0.67457485]
[1720784043173,0.524738,57390.0,57389.0,0.67457485]
[1720784043722,0.524738,57390.0,57389.0,0.73457485]
[1720784043899,0.524738,57390.0,57389.0,0.67457485]
[1720784044163,0.002,57390.0,57389.0,0.73457485]
[1720784045810,0.002,57390.0,57389.0,0.67457485]
[1720784045941,0.002,57390.0,57389.0,0.6079135]
[1720784046121,0.176246,57390.0,57389.0,0.6079135]
[1720784046530,1.221722,57390.0,57389.0,0.6079135]
[1720784046733,1.221722,57390.0,57389.0,0.6052185]
[1720784046946,0.87323,57390.0,57389.0,0.60792379]
[1720784047166,0.87323,57390.0,57389.0,0.67471617]
[1720784047167,0.002,57390.0,57389.0,0.67471617]
[1720784049617,0.87323,57390.0,57389.0,0.60792379]
[1720784052360,0.524738,57390.0,57389.0,0.66792379]
[1720784052585,0.524738,57390.0,57389.0,0.60792379]
[1720784052947,0.87323,57390.0,57389.0,0.60792379]
[1720784057224,0.87123,57390.0,57389.0,0.60792379]
[1720784060613,1.219722,57390.0,57389.0,0.60792379]
[1720784063942,1.219722,57390.0,57389.0,0.46672379]
[1720784067495,1.219722,57390.0,57389.0,0.34702365]
[1720784069431,1.219722,57390.0,57389.0,0.46672379]
[1720784071505,1.219722,57390.0,57389.0,0.04702365]
[1720784071506,1.568214,57390.0,57389.0,0.04702365]
[1720784071683,1.568214,57390.0,57389.0,0.24502365]
[1720784073769,1.568214,57390.0,57389.0,0.04502365]
[1720784074518,1.568214,57390.0,57389.0,0.04502365]
[1720784074729,1.91700586,57390.0,57389.0,0.04502365]
[1720784074939,1.92600586,57390.0,57389.0,0.04502365]
[1720784075149,2.27449786,57390.0,57389.0,0.010913]
[1720784075353,2.56192486,57390.0,57389.0,0.010913]
[1720784075560,2.76532486,57390.0,57389.0,0.010913]
[1720784075789,2.76532486,57390.0,57375.0,0.0818]
[1720784075790,0.00029986,57383.0,57382.0,0.03140536]
[1720784076001,0.52310186,57383.0,57382.0,0.03140536]
[1720784076204,1.22017186,57383.0,57382.0,0.0338697]
[1720784076410,1.91724186,57383.0,57382.0,0.03140536]
[1720784076820,1.92134186,57383.0,57382.0,0.03140536]
[1720784077101,1.92624186,57383.0,57382.0,0.03140536]
[1720784077289,1.92824186,57383.0,57382.0,0.03140536]
[1720784077704,1.92824186,57383.0,57382.0,0.03440536]
[1720784078759,0.18358786,57376.0,57375.0,0.03140536]
[1720784078974,0.53216486,57376.0,57375.0,0.03140536]
[1720784079184,1.57789586,57376.0,57375.0,0.0338697]
[1720784079397,1.57789586,57376.0,57375.0,0.03140536]
[1720784079855,1.22931886,57376.0,57375.0,0.03140536]
[1720784080069,0.52317386,57375.0,57374.0,0.03140536]
[1720784080280,1.22033986,57375.0,57374.0,0.03140536]
[1720784080488,1.56892286,57375.0,57374.0,0.03140536]
[1720784086071,1.56892286,57375.0,57374.0,0.02626412]
[1720784086275,0.87178986,57373.0,57372.0,0.02626412]
[1720784086484,0.17460086,57372.0,57371.0,0.02626412]
[1720784086685,0.87180486,57372.0,57371.0,0.02626412]
[1720784086857,0.87180486,57372.0,57368.0,0.1]
[1720784086858,0.52293,57369.0,57368.0,0.02626412]
[1720784087059,0.87184986,57369.0,57368.0,0.02626412]
[1720784087297,1.56908986,57369.0,57368.0,0.02877283]
[1720784087496,0.357614,57370.0,57367.0,0.02626412]
[1720784087497,0.87186486,57368.0,57367.0,0.02626412]
[1720784087696,1.22049086,57368.0,57367.0,0.02626412]
[1720784087898,1.56911686,57368.0,57367.0,0.02626412]
[1720784088301,1.91774286,57368.0,57367.0,0.02626412]
[1720784090619,1.568817,57368.0,57367.0,0.02626412]
[1720784090825,1.568817,57368.0,57367.0,0.32626412]
[1720784091033,1.568817,57368.0,57367.0,0.59187297]
[1720784091230,1.568817,57368.0,57367.0,0.47217283]
[1720784091837,1.568817,57368.0,57367.0,0.59187297]
[1720784092186,1.568817,57368.0,57367.0,0.27217283]
[1720784092805,1.568817,57368.0,57367.0,0.47217283]
[1720784093207,1.568817,57368.0,57367.0,0.59187297]
[1720784093925,1.220191,57368.0,57367.0,0.59187297]
[1720784094116,0.87963888,57368.0,57367.0,0.59187297]
[1720784096194,0.53101288,57368.0,57367.0,0.59187297]
[1720784096348,0.87963888,57368.0,57367.0,0.59187297]
[1720784097781,0.53101288,57368.0,57367.0,0.59187297]
[1720784098185,0.87963888,57368.0,57367.0,0.59187297]
[1720784098671,0.87963888,57368.0,57367.0,0.47217283]
[1720784098877,1.22826488,57368.0,57367.0,0.47217283]
[1720784099128,1.22826488,57368.0,57367.0,0.02877283]
[1720784100131,1.57689088,57368.0,57367.0,0.02877283]
[1720784100338,1.22826488,57368.0,57367.0,0.22877283]
[1720784100711,1.24649977,57368.0,57367.0,0.22877283]
[1720784101918,0.89787377,57368.0,57367.0,0.67618732]
[1720784102390,1.24649977,57368.0,57367.0,0.67618732]
[1720784102792,0.89787377,57368.0,57367.0,0.67618732]
[1720784104019,0.54117389,57368.0,57367.0,0.67618732]
[1720784104219,0.54117389,57368.0,57367.0,0.73618732]
[1720784104797,0.01823489,57368.0,57367.0,0.80998865]
[1720784104997,0.01823489,57368.0,57367.0,0.73618732]
[1720784105892,0.01923489,57368.0,57367.0,0.73618732]
[1720784106306,0.01923489,57368.0,57367.0,0.67618732]
[1720784106507,0.19254789,57368.0,57367.0,0.67618732]
[1720784106758,0.19354789,57368.0,57367.0,0.67618732]
[1720784106956,0.19454789,57368.0,57367.0,0.67618732]
[1720784107920,0.19454789,57368.0,57367.0,0.80353115]
[1720784108130,0.19354789,57368.0,57367.0,0.80353115]
[1720784108283,0.01923489,57368.0,57367.0,0.80353115]
[1720784108489,0.02023489,57368.0,57367.0,0.80353115]
[1720784108695,0.01923489,57368.0,57367.0,0.80353115]
[1720784109079,0.02023489,57368.0,57367.0,0.80353115]
[1720784109529,0.01923489,57368.0,57367.0,0.80353115]
[1720784109733,0.01823489,57368.0,57367.0,0.80353115]
[1720784109895,0.01923489,57368.0,57367.0,0.80353115]
[1720784110094,0.02023489,57368.0,57367.0,0.80353115]
[1720784110297,0.01923489,57368.0,57367.0,0.6584168]
[1720784110895,0.19454789,57368.0,57367.0,0.6584168]
[1720784111084,0.02023489,57368.0,57367.0,0.6584168]
[1720784111289,0.19454789,57368.0,57367.0,0.6584168]
[1720784111488,0.19454789,57368.0,57367.0,0.59107297]
[1720784113507,0.02023489,57368.0,57367.0,0.59107297]
[1720784113736,0.02023489,57368.0,57367.0,0.65107297]
[1720784114245,0.02023489,57368.0,57367.0,0.59107297]
[1720784114487,0.19454789,57368.0,57367.0,0.59107297]
[1720784114763,0.89179989,57368.0,57367.0,0.59107297]
[1720784115767,0.88979989,57368.0,57367.0,0.59107297]
[1720784116010,0.89079989,57368.0,57367.0,0.47137283]
[1720784116263,0.89079989,57368.0,57367.0,0.02877283]
[1720784116264,1.58905189,57368.0,57367.0,0.02877283]
[1720784116508,1.58905189,57368.0,57364.0,0.000913]
[1720784116509,0.87161,57365.0,57364.0,0.000913]
[1720784116749,1.568898,57365.0,57364.0,0.000913]
[1720784117572,1.568898,57365.0,57364.0,0.00330612]
[1720784117806,1.569898,57365.0,57364.0,0.00330612]
[1720784119283,1.568898,57365.0,57364.0,0.00330612]
[1720784119528,1.569898,57365.0,57364.0,0.00330612]
[1720784120565,1.570898,57365.0,57364.0,0.00330612]
[1720784122197,1.570898,57365.0,57364.0,0.20330612]
[1720784122804,1.570898,57365.0,57364.0,0.00330612]
[1720784127334,1.579393,57365.0,57364.0,0.00330612]
[1720784129988,1.579393,57365.0,57364.0,0.20330612]
[1720784131129,1.579393,57365.0,57364.0,0.32300626]
[1720784131602,1.579393,57365.0,57364.0,0.32661701]
[1720784132026,1.230749,57365.0,57364.0,0.64621701]
[1720784132229,0.882105,57365.0,57364.0,0.70621701]
[1720784132899,0.881105,57365.0,57364.0,0.70621701]
[1720784133315,0.524966,57365.0,57364.0,0.70621701]
[1720784133519,0.176322,57365.0,57364.0,0.70621701]
[1720784133955,0.175322,57365.0,57364.0,0.70621701]
[1720784134169,0.175322,57365.0,57364.0,1.22919201]
[1720784134170,0.001,57365.0,57364.0,1.22919201]
[1720784134375,0.002,57365.0,57364.0,1.57784201]
[1720784134586,0.001,57365.0,57364.0,1.57784201]
[1720784134794,0.174305,57371.0,57370.0,0.11970014]
[1720784135005,0.174305,57371.0,57370.0,0.62440014]
[1720784135219,0.174305,57371.0,57370.0,0.62941132]
[1720784135841,0.174305,57371.0,57370.0,0.62841132]
[1720784136217,0.174305,57371.0,57370.0,0.62741132]
[1720784137383,0.523913,57371.0,57370.0,0.56741132]
[1720784138009,0.523913,57371.0,57370.0,0.56841132]
[1720784138216,0.524913,57371.0,57370.0,0.56841132]
[1720784138415,0.176304,57371.0,57370.0,0.62841132]
[1720784138802,0.002,57371.0,57370.0,1.15133232]
[1720784139016,0.002,57371.0,57370.0,1.49994632]
[1720784139494,0.002,57371.0,57370.0,1.70344632]
[1720784139900,0.002,57371.0,57370.0,2.25206032]
[1720784140101,0.002,57371.0,57370.0,2.42229772]
[1720784140781,0.174277,57380.0,57370.0,2.42129772]
[1720784141062,0.174277,57380.0,57379.0,0.62040014]
[1720784141222,0.174277,57380.0,57379.0,0.61940014]
[1720784141420,0.52283,57380.0,57379.0,0.56538969]
[1720784142020,0.52383,57380.0,57379.0,0.62538969]
[1720784142425,0.175277,57380.0,57379.0,0.62538969]
[1720784142628,0.150277,57380.0,57379.0,0.62538969]
[1720784142972,0.150277,57380.0,57379.0,0.63038969]
[1720784143797,0.145277,57380.0,57379.0,0.63038969]
[1720784143999,0.1536554,57380.0,57379.0,0.63038969]
[1720784144211,0.1526554,57380.0,57379.0,0.63038969]
[1720784144323,0.1526554,57380.0,57379.0,0.71616411]
[1720784145346,0.1526554,57380.0,57379.0,0.65616411]
[1720784146013,0.0083784,57380.0,57379.0,0.83044311]
[1720784146236,0.0083784,57380.0,57379.0,0.89044311]
[1720784146349,0.174266,57384.0,57383.0,0.41370014]
[1720784146549,0.174266,57384.0,57383.0,0.41967312]
[1720784146950,0.522795,57384.0,57383.0,0.41967312]
[1720784147153,0.53137468,57384.0,57383.0,0.41967312]
[1720784148034,0.53137468,57384.0,57383.0,0.51967312]
[1720784148250,0.87990368,57384.0,57383.0,0.51927312]
[1720784148426,0.87490368,57384.0,57383.0,0.51927312]
[1720784156556,0.00857968,57384.0,57383.0,0.78504679]
[1720784156801,0.348512,57387.0,57386.0,0.21730014]
[1720784156802,0.522768,57387.0,57386.0,0.21730014]
[1720784157044,0.522768,57387.0,57386.0,0.61260014]
[1720784157286,0.522768,57387.0,57386.0,0.61857312]
[1720784157492,0.53129344,57387.0,57386.0,0.61857312]
[1720784157723,0.53129344,57387.0,57386.0,0.61757312]
[1720784158183,0.53129344,57387.0,57386.0,0.6483012]
[1720784158604,0.53129344,57387.0,57386.0,0.7297012]
[1720784158803,0.53229344,57387.0,57386.0,0.7387012]
[1720784159857,0.53229344,57387.0,57386.0,0.70697312]
[1720784160376,0.53329344,57387.0,57386.0,0.71497312]
[1720784160586,0.53329344,57387.0,57386.0,0.57357312]
[1720784161578,0.01052544,57387.0,57386.0,0.63357312]
[1720784161757,0.01052544,57387.0,57386.0,0.94228532]
[1720784162375,0.002,57387.0,57386.0,1.29080232]
[1720784162955,0.002,57387.0,57386.0,1.63931932]
[1720784163414,0.002,57387.0,57386.0,1.83931932]
[1720784164016,0.01823489,57395.0,57386.0,1.83931932]
[1720784164017,0.01823489,57395.0,57394.0,0.55210014]
[1720784164214,0.01823489,57395.0,57394.0,0.60910014]
[1720784164389,0.01823489,57395.0,57394.0,0.55306451]
[1720784164593,0.02661231,57395.0,57394.0,0.61306451]
[1720784165111,0.02661231,57395.0,57394.0,0.61806451]
[1720784165476,0.02661231,57395.0,57394.0,0.62306451]
[1720784165689,0.02661231,57395.0,57394.0,0.56306451]